bitfinex-derivatives/quotes_ETHF0:USTF0_20210406
["timestamp","ask_amount","ask_price","bid_price","bid_amount"]
[1617686440717,2.90695,2122.4,2122.3,5.92]
[1617686440918,2.90695,2122.4,2122.0,6.057047]
[1617686441120,2.90695,2122.4,2122.2,5.67]
[1617686441318,2.90695,2122.4,2122.3,5.71]
[1617686441518,2.90695,2122.4,2122.1,0.4]
[1617686441719,2.90695,2122.4,2122.0,6.057047]
[1617686442018,62.263,2122.1,2122.0,6.057047]
[1617686442420,64.8965,2122.1,2122.0,11.807047]
[1617686442619,67.80345,2122.1,2122.0,11.807047]
[1617686447723,65.16995,2122.1,2122.0,11.807047]
[1617686448725,65.16995,2122.1,2122.0,5.75]
[1617686449225,65.16995,2122.1,2121.8,5.79]
[1617686449525,65.16995,2122.1,2122.0,5.82]
[1617686449725,65.16995,2122.1,2121.8,5.86]
[1617686450927,65.16995,2122.1,2122.0,6.06570719]
[1617686451330,65.16995,2122.1,2122.0,9.32570719]
[1617686453032,65.16995,2122.1,2122.0,8.39370719]
[1617686453435,65.16995,2122.1,2122.0,3.26]
[1617686454032,65.16995,2122.1,2121.6,5.77]
[1617686454232,65.16995,2122.1,2122.0,5.77]
[1617686454432,65.16995,2122.1,2121.6,5.87]
[1617686454632,2.90695,2121.7,2121.6,5.87]
[1617686454932,2.90695,2121.7,2121.5,7.17049128]
[1617686455134,2.90695,2121.7,2121.6,5.72]
[1617686455734,3.85795,2121.7,2121.6,5.72]
[1617686456334,3.85795,2121.7,2121.5,12.82777882]
[1617686456735,3.85795,2121.7,2121.6,5.76]
[1617686456935,3.85795,2121.7,2121.4,7.16792744]
[1617686457135,3.85795,2121.7,2121.5,5.78]
[1617686457335,3.85795,2121.7,2121.6,5.87]
[1617686457535,3.85795,2121.7,2121.4,7.16792744]
[1617686457738,59.9307,2121.6,2121.5,5.88]
[1617686457937,59.9307,2121.6,2121.4,7.16792744]
[1617686458337,59.9307,2121.6,2121.5,5.66]
[1617686458539,3.85795,2121.7,2121.5,5.66]
[1617686459141,5.85795,2121.7,2121.5,5.66]
[1617686459339,5.85795,2121.7,2121.5,5.4187]
[1617686459640,59.1747,2121.5,2121.4,3.47]
[1617686459840,59.1747,2121.5,2121.1,7.17389477]
[1617686460040,59.1747,2121.5,2121.3,0.1]
[1617686460343,8.02175,2121.7,2121.4,5.88]
[1617686460541,8.02175,2121.7,2121.2,5.78]
[1617686460743,59.8712,2121.2,2121.1,7.17389477]
[1617686460945,62.2844,2121.2,2121.1,7.17389477]
[1617686461143,62.2844,2121.2,2121.1,13.32469808]
[1617686461443,62.2844,2121.2,2121.1,6.15080331]
[1617686462146,59.8712,2121.2,2121.1,6.15080331]
[1617686470955,59.8712,2121.2,2121.1,13.32785369]
[1617686471456,59.8712,2121.2,2121.1,6.15080331]
[1617686474464,2.90695,2121.3,2121.1,6.15080331]
[1617686474964,2.90695,2121.3,2121.1,5.93]
[1617686475365,2.90695,2121.3,2121.1,13.09939129]
[1617686475771,2.90695,2121.3,2121.1,7.16939129]
[1617686476167,2.90695,2121.3,2121.2,5.71]
[1617686476568,2.90695,2121.3,2121.1,5.65]
[1617686476969,74.98185,2121.3,2121.2,5.71]
[1617686477169,74.98185,2121.3,2121.1,5.65]
[1617686477672,74.98185,2121.3,2121.0,7.16916946]
[1617686477673,74.98185,2121.3,2121.2,5.76]
[1617686477873,74.98185,2121.3,2121.1,5.92]
[1617686478070,74.98185,2121.3,2121.2,5.78]
[1617686478473,2.90695,2121.3,2121.2,0.22033684]
[1617686478773,2.90695,2121.3,2121.2,5.98033684]
[1617686478975,2.90695,2121.3,2121.2,13.14718534]
[1617686480674,2.90695,2121.3,2121.2,5.98033684]
[1617686481375,72.53745,2121.3,2121.2,5.76]
[1617686481975,72.53745,2121.3,2121.2,5.98044112]
[1617686483277,72.53745,2121.3,2121.2,13.14726752]
[1617686483580,72.53745,2121.3,2121.2,5.98044112]
[1617686489590,75.46585,2121.3,2121.2,5.98044112]
[1617686491392,75.46585,2121.3,2121.2,5.76]
[1617686491792,75.46585,2121.3,2121.1,5.71]
[1617686492093,75.46585,2121.3,2121.2,5.93]
[1617686492292,72.53745,2121.3,2121.2,5.93]
[1617686492492,72.53745,2121.3,2121.1,5.94]
[1617686492692,72.53745,2121.3,2121.2,5.83]
[1617686493192,72.53745,2121.3,2121.2,0.22079739]
[1617686493393,73.47275,2121.3,2121.2,6.13079739]
[1617686494595,3.84225,2121.3,2121.2,5.91]
[1617686494995,64.2942,2121.2,2121.0,5.74]
[1617686495496,64.2942,2121.2,2121.1,0.22082276]
[1617686495696,64.2942,2121.2,2121.1,6.00082276]
[1617686495898,64.2942,2121.2,2121.1,0.22082276]
[1617686496298,64.2942,2121.2,2121.1,6.13082276]
[1617686496998,3.84225,2121.3,2121.1,5.19082276]
[1617686497599,3.84225,2121.3,2121.2,6.08257069]
[1617686498098,3.84225,2121.3,2121.2,5.71]
[1617686498599,3.84225,2121.3,2121.0,5.87]
[1617686498799,3.84225,2121.3,2120.9,3.29]
[1617686499100,3.84225,2121.3,2120.8,7.18809867]
[1617686499101,3.84225,2121.3,2121.2,11.46396482]
[1617686499399,3.84225,2121.3,2121.2,6.08396482]
[1617686499599,3.84225,2121.3,2121.2,11.96396482]
[1617686500400,3.84225,2121.3,2121.2,11.01196482]
[1617686500800,3.84225,2121.3,2121.2,5.88]
[1617686501204,60.0753,2121.2,2120.8,5.77]
[1617686501606,60.0753,2121.2,2120.7,7.19171684]
[1617686501804,60.0753,2121.2,2120.9,5.76]
[1617686502206,60.0753,2121.2,2120.8,5.87567317]
[1617686502410,60.0753,2121.2,2121.0,5.75]
[1617686502810,60.0753,2121.2,2120.9,5.65]
[1617686503008,60.0753,2121.2,2121.1,5.72]
[1617686503519,60.0753,2121.2,2120.7,7.19171684]
[1617686503520,60.0753,2121.2,2121.0,5.75]
[1617686503725,60.0753,2121.2,2120.9,3.43]
[1617686503726,60.0753,2121.2,2121.1,5.52]
[1617686504008,60.7132,2121.1,2120.7,0.35]
[1617686504209,60.7132,2121.1,2120.9,5.75]
[1617686504408,60.7132,2121.1,2120.6,7.19369355]
[1617686504609,60.7132,2121.1,2120.8,5.79]
[1617686504908,60.7132,2121.1,2121.0,5.85]
[1617686505108,60.7132,2121.1,2120.3,3.90695]
[1617686505109,60.7132,2121.1,2120.8,4.97753046]
[1617686505408,60.7132,2121.1,2121.0,5.82]
[1617686505731,60.7132,2121.1,2120.8,4.97753046]
[1617686506108,60.7132,2121.1,2121.0,5.92]
[1617686506309,60.7132,2121.1,2120.9,5.65]
[1617686506509,60.7132,2121.1,2120.8,4.97753046]
[1617686506810,60.7132,2121.1,2121.0,5.77]
[1617686507009,60.7132,2121.1,2120.9,5.86]
[1617686507211,60.7132,2121.1,2120.8,4.97753046]
[1617686507411,60.7132,2121.1,2121.0,5.77]
[1617686507611,60.7132,2121.1,2120.9,5.84]
[1617686507811,60.7132,2121.1,2120.8,4.97753046]
[1617686508111,60.7132,2121.1,2121.0,4.86]
[1617686508312,60.7132,2121.1,2120.9,5.86]
[1617686508513,60.7132,2121.1,2121.0,5.73]
[1617686508815,60.7132,2121.1,2120.9,5.67]
[1617686509214,60.7132,2121.1,2121.0,5.76]
[1617686509416,60.7132,2121.1,2120.3,3.90695]
[1617686509714,60.7132,2121.1,2121.0,5.91]
[1617686510016,60.7132,2121.1,2120.3,1.0]
[1617686510314,60.7132,2121.1,2121.0,5.89]
[1617686510715,60.7132,2121.1,2120.4,6.08573388]
[1617686510915,60.7132,2121.1,2121.0,5.74]
[1617686511317,60.7132,2121.1,2120.5,6.08577679]
[1617686511517,60.7132,2121.1,2121.0,5.72]
[1617686511920,60.7132,2121.1,2120.4,6.08575863]
[1617686512121,60.7132,2121.1,2120.8,5.24]
[1617686512324,60.7132,2121.1,2121.0,5.76]
[1617686512521,60.7132,2121.1,2120.5,6.08843386]
[1617686512737,60.7132,2121.1,2120.9,5.4]
[1617686512933,60.7132,2121.1,2121.0,5.59]
[1617686513221,60.7132,2121.1,2120.5,6.08843386]
[1617686513421,60.7132,2121.1,2120.9,5.69]
[1617686513623,60.7132,2121.1,2121.0,5.92]
[1617686513825,60.7132,2121.1,2120.6,0.2]
[1617686514023,60.7132,2121.1,2121.0,5.9]
[1617686514425,60.7132,2121.1,2120.9,5.86]
[1617686514624,60.7132,2121.1,2120.6,5.73]
[1617686514824,60.7132,2121.1,2121.0,5.8]
[1617686515025,63.62015,2121.1,2120.6,5.94]
[1617686515523,63.62015,2121.1,2121.0,5.69]
[1617686515723,63.62015,2121.1,2120.6,5.84]
[1617686515923,63.62015,2121.1,2121.0,5.91]
[1617686516223,63.62015,2121.1,2120.3,7.08207427]
[1617686516224,63.62015,2121.1,2120.4,5.77]
[1617686517226,2.90695,2120.5,2120.4,5.77]
[1617686517925,1.9492,2121.0,2120.4,5.77]
[1617686518325,1.9492,2121.0,2120.5,4.9762933]
[1617686518727,1.9492,2121.0,2120.6,5.82]
[1617686519226,2.90695,2120.7,2120.5,5.9]
[1617686519525,3.85305,2120.7,2120.4,4.97635934]
[1617686519727,3.85305,2120.7,2120.6,5.91]
[1617686520029,3.85305,2120.7,2120.5,5.92]
[1617686526333,3.85305,2120.7,2120.4,5.86]
[1617686526535,3.85305,2120.7,2120.6,5.9]
[1617686526834,3.85305,2120.7,2120.3,1.0]
[1617686527034,3.85305,2120.7,2120.4,5.85]
[1617686527236,3.85305,2120.7,2120.6,5.71]
[1617686527436,3.85305,2120.7,2120.3,1.0]
[1617686527734,0.9461,2120.7,2120.6,5.8]
[1617686528135,0.9461,2120.7,2120.4,5.7]
[1617686528434,0.9461,2120.7,2120.6,5.94]
[1617686528735,0.9461,2120.7,2120.4,5.79]
[1617686529536,4.74045,2120.5,2120.4,5.79]
[1617686535655,2.90695,2120.5,2120.4,7.6435]
[1617686535846,0.9353,2121.3,2120.4,7.6435]
[1617686536042,0.9353,2121.3,2120.4,13.72570683]
[1617686536442,0.9353,2121.3,2120.7,4.97408798]
[1617686536842,0.9353,2121.3,2120.9,4.971954]
[1617686537042,73.4299,2121.2,2120.9,4.971954]
[1617686537243,0.9353,2121.3,2121.0,5.7]
[1617686537645,2.90695,2121.1,2121.0,5.7]
[1617686539848,62.33765,2121.1,2121.0,5.7]
[1617686543754,62.33765,2121.1,2120.9,3.0]
[1617686544053,62.33765,2121.1,2121.0,5.69]
[1617686544353,62.33765,2121.1,2120.9,5.76]
[1617686544552,62.33765,2121.1,2121.0,5.8]
[1617686544953,62.33765,2121.1,2120.9,5.83]
[1617686545153,62.33765,2121.1,2121.0,5.92]
[1617686545654,62.33765,2121.1,2120.9,5.93]
[1617686545857,62.33765,2121.1,2121.0,5.73]
[1617686546153,62.33765,2121.1,2120.9,10.89786134]
[1617686546555,62.33765,2121.1,2121.0,5.87]
[1617686550865,62.33765,2121.1,2120.9,3.32]
[1617686550866,64.35115,2121.1,2120.9,3.32]
[1617686551162,64.35115,2121.1,2121.0,5.57]
[1617686551464,64.35115,2121.1,2120.9,5.8]
[1617686551864,64.35115,2121.1,2121.0,5.78]
[1617686552162,64.35115,2121.1,2120.9,10.74085723]
[1617686552363,62.33765,2121.1,2120.9,10.74085723]
[1617686552563,62.33765,2121.1,2121.0,5.91]
[1617686552763,62.33765,2121.1,2120.9,4.98085723]
[1617686553165,62.33765,2121.1,2121.0,5.7]
[1617686554566,62.33765,2121.1,2120.9,10.8306421]
[1617686554766,62.33765,2121.1,2121.0,5.8]
[1617686561273,62.33765,2121.1,2120.9,2.96]
[1617686561476,62.33765,2121.1,2121.0,5.93]
[1617686561776,62.33765,2121.1,2120.9,10.7725456]
[1617686562075,62.33765,2121.1,2121.0,5.87]
[1617686562475,62.33765,2121.1,2120.8,4.98248254]
[1617686562676,62.33765,2121.1,2121.0,5.73]
[1617686563179,62.33765,2121.1,2120.9,4.98248152]
[1617686563377,62.33765,2121.1,2121.0,5.84]
[1617686564081,62.33765,2121.1,2120.9,3.14]
[1617686564579,62.33765,2121.1,2120.9,5.79]
[1617686565582,62.33765,2121.1,2120.9,4.8669]
[1617686565987,62.33765,2121.1,2120.6,10.92302669]
[1617686566283,62.33765,2121.1,2121.0,5.83]
[1617686566683,62.33765,2121.1,2120.7,10.69297291]
[1617686566883,62.33765,2121.1,2121.0,5.68]
[1617686567183,62.33765,2121.1,2120.8,5.74]
[1617686567683,62.33765,2121.1,2121.0,5.84]
[1617686567884,62.33765,2121.1,2120.8,5.65]
[1617686568183,62.33765,2121.1,2120.7,4.98297291]
[1617686568184,62.33765,2121.1,2121.0,5.67]
[1617686568384,62.33765,2121.1,2120.8,5.65]
[1617686568785,62.33765,2121.1,2121.0,5.65]
[1617686568986,62.33765,2121.1,2120.8,5.67]
[1617686569188,62.33765,2121.1,2120.8,10.65286934]
[1617686569585,62.33765,2121.1,2120.8,4.98286934]
[1617686569985,62.33765,2121.1,2120.9,5.92]
[1617686572094,2.90695,2121.1,2120.8,2.27]
[1617686572306,2.90695,2121.1,2121.0,5.86]
[1617686572696,4.87275,2121.1,2120.8,10.66018272]
[1617686572895,4.87275,2121.1,2121.0,5.75]
[1617686573196,4.87275,2121.1,2120.9,5.77]
[1617686573593,4.87275,2121.1,2120.8,2.543]
[1617686574096,4.87275,2121.1,2121.0,5.334]
[1617686574393,4.87275,2121.1,2120.8,5.73]
[1617686574394,65.9057,2121.0,2120.8,5.73]
[1617686574596,65.9057,2121.0,2120.7,4.98070317]
[1617686574897,65.9057,2121.0,2120.9,5.86]
[1617686575097,65.9057,2121.0,2120.8,5.92]
[1617686575303,65.9057,2121.0,2120.7,4.88370317]
[1617686575500,65.9057,2121.0,2120.8,5.89]
[1617686576507,65.9057,2121.0,2120.6,5.73]
[1617686576803,65.9057,2121.0,2120.9,5.75]
[1617686577201,65.9057,2121.0,2120.7,5.82]
[1617686577403,65.9057,2121.0,2120.9,5.92]
[1617686577804,65.9057,2121.0,2120.8,5.74]
[1617686578102,68.8091,2121.0,2120.9,5.67]
[1617686578303,68.8091,2121.0,2120.6,6.08723341]
[1617686578503,68.8091,2121.0,2120.8,5.71]
[1617686578905,68.8091,2121.0,2120.6,3.47]
[1617686579104,68.8091,2121.0,2120.9,5.34]
[1617686579604,68.8091,2121.0,2120.6,5.92]
[1617686579805,68.8091,2121.0,2120.9,5.79]
[1617686580104,68.8091,2121.0,2120.7,5.69]
[1617686580505,68.8091,2121.0,2120.4,6.08933959]
[1617686580705,68.8091,2121.0,2120.8,5.73]
[1617686581108,68.8091,2121.0,2120.7,4.69]
[1617686581307,68.8091,2121.0,2120.9,5.77]
[1617686581707,68.8091,2121.0,2120.8,5.79]
[1617686581909,68.8091,2121.0,2120.9,5.85]
[1617686582308,68.8091,2121.0,2120.5,3.67]
[1617686582508,68.8091,2121.0,2120.8,5.88]
[1617686582708,68.8091,2121.0,2120.9,5.74]
[1617686582907,68.8091,2121.0,2120.5,5.85]
[1617686583108,68.8091,2121.0,2120.9,5.84]
[1617686583411,68.8091,2121.0,2120.3,1.0]
[1617686583412,68.8091,2121.0,2120.6,6.09396484]
[1617686583707,32.3522,2121.0,2120.9,5.67]
[1617686583910,32.3522,2121.0,2120.9,4.73]
[1617686584111,34.3522,2121.0,2120.7,2.8969]
[1617686584311,2.0,2120.8,2120.3,1.0]
[1617686584515,2.0,2120.8,2120.5,5.7]
[1617686584717,2.9436,2120.8,2120.4,5.66]
[1617686584954,2.9436,2120.8,2120.3,5.99133195]
[1617686585220,32.9436,2120.8,2120.3,5.49613195]
[1617686585421,32.9436,2120.8,2120.3,3.43313195]
[1617686585624,32.9436,2120.8,2119.6,6.32761485]
[1617686585847,32.9436,2120.8,2117.4,30.0]
[1617686585849,77.4289,2120.3,2119.3,7.21356066]
[1617686586059,4.81105,2119.4,2119.3,5.99696066]
[1617686586305,4.81105,2119.4,2119.3,5.91]
[1617686586514,4.81105,2119.4,2118.7,8.3237502]
[1617686586713,4.81105,2119.4,2118.8,5.11]
[1617686586714,69.409,2118.9,2118.8,5.11]
[1617686586915,71.2673,2118.9,2118.8,5.32680043]
[1617686587129,71.2673,2118.9,2118.8,0.21680043]
[1617686587319,71.2673,2118.9,2118.8,5.99680043]
[1617686587615,71.2673,2118.9,2118.8,5.78]
[1617686587816,2.8143,2118.9,2118.8,5.99680656]
[1617686588118,4.76525,2118.9,2118.8,5.99680656]
[1617686588317,4.76525,2118.9,2118.8,0.21680656]
[1617686588517,4.76525,2118.9,2118.8,5.88680656]
[1617686589019,5.71835,2118.9,2118.8,5.88680656]
[1617686589220,5.71835,2118.9,2118.8,5.67]
[1617686589526,4.76525,2118.9,2118.8,5.67]
[1617686589723,4.76525,2118.9,2118.7,5.74]
[1617686589921,65.5255,2118.8,2118.6,2.90695]
[1617686590221,65.5255,2118.8,2118.7,5.73]
[1617686590621,66.4677,2118.8,2118.7,5.73]
[1617686591522,65.5255,2118.8,2118.7,5.73]
[1617686596227,65.5255,2118.8,2118.7,10.70477692]
[1617686599732,5.69565,2118.9,2118.7,10.70477692]
[1617686602835,70.22055,2118.9,2118.7,10.70477692]
[1617686603035,2.90695,2118.9,2118.7,10.70477692]
[1617686604735,67.2711,2120.1,2118.7,10.70477692]
[1617686605940,67.2711,2120.1,2119.6,2.90695]
[1617686606339,67.2711,2120.1,2119.7,5.88]
[1617686608042,2.90695,2119.8,2119.7,5.88]
[1617686613551,2.90695,2119.8,2118.8,5.73]
[1617686614051,67.2711,2120.1,2119.2,2.90695]
[1617686614552,67.2711,2120.1,2119.3,5.75]
[1617686616157,2.90695,2119.4,2119.3,5.75]
[1617686632178,55.3127,2119.3,2118.7,8.73695]
[1617686632377,55.3127,2119.3,2118.8,0.2161665]
[1617686632778,55.3127,2119.3,2118.9,5.8]
[1617686633581,55.3127,2119.3,2118.8,5.8]
[1617686633879,55.3127,2119.3,2119.0,5.89]
[1617686634279,2.90695,2119.1,2118.8,5.71]
[1617686634579,2.90695,2119.1,2118.7,7.87011022]
[1617686634879,2.90695,2119.1,2118.9,6.12632337]
[1617686635079,2.90695,2119.1,2118.9,5.91]
[1617686635280,2.90695,2119.1,2118.8,6.15632813]
[1617686635480,2.90695,2119.1,2118.9,5.72]
[1617686635881,2.90695,2119.1,2118.8,5.71]
[1617686636286,2.90695,2119.1,2118.9,0.21633178]
[1617686636784,2.90695,2119.1,2119.0,5.7]
[1617686637684,2.90695,2119.1,2118.8,5.82]
[1617686637884,2.90695,2119.1,2119.0,5.8]
[1617686638204,2.90695,2119.1,2118.8,5.75]
[1617686638595,2.90695,2119.1,2119.0,5.69]
[1617686638787,2.90695,2119.1,2118.9,0.21633236]
[1617686638988,2.90695,2119.1,2118.8,5.77]
[1617686639186,2.90695,2119.1,2119.0,5.88]
[1617686639387,2.90695,2119.1,2118.8,5.88]
[1617686639787,2.90695,2119.1,2119.0,5.74]
[1617686640087,2.90695,2119.1,2118.8,5.78]
[1617686640488,2.90695,2119.1,2119.0,5.8]
[1617686640788,2.90695,2119.1,2118.9,0.21633666]
[1617686640988,2.90695,2119.1,2119.0,5.88]
[1617686641188,2.90695,2119.1,2119.0,6.09726882]
[1617686641390,2.90695,2119.1,2119.0,0.21726882]
[1617686641689,2.90695,2119.1,2119.0,5.87726882]
[1617686642190,2.90695,2119.1,2119.0,5.66]
[1617686642391,2.90695,2119.1,2119.0,5.87726934]
[1617686642589,2.90695,2119.1,2119.0,0.21726934]
[1617686642890,2.90695,2119.1,2119.0,5.94726934]
[1617686643190,2.90695,2119.1,2119.0,5.73]
[1617686643390,2.90695,2119.1,2119.0,5.94726661]
[1617686643591,2.90695,2119.1,2119.0,0.21726661]
[1617686644190,2.90695,2119.1,2119.0,5.98726661]
[1617686644390,56.5825,2120.1,2119.0,5.98726661]
[1617686644591,0.9366,2120.2,2119.0,5.98726661]
[1617686644791,74.0697,2119.6,2119.1,0.21726362]
[1617686644992,2.90695,2119.2,2119.1,0.21726362]
[1617686645392,2.90695,2119.2,2119.1,6.14726362]
[1617686645592,2.90695,2119.2,2119.1,5.93]
[1617686645792,2.90695,2119.2,2119.1,6.14726286]
[1617686646092,74.0697,2119.6,2119.1,0.21726286]
[1617686646292,74.0697,2119.6,2119.1,5.98726286]
[1617686646692,74.0697,2119.6,2119.2,0.21726141]
[1617686647092,74.0697,2119.6,2119.3,5.92]
[1617686648094,74.0697,2119.6,2119.0,5.69]
[1617686648397,74.0697,2119.6,2119.4,5.88]
[1617686648595,74.0697,2119.6,2119.1,0.21730339]
[1617686648795,74.0697,2119.6,2119.0,5.89]
[1617686648997,74.0697,2119.6,2119.5,5.66]
[1617686649296,74.0697,2119.6,2119.1,0.21727945]
[1617686649495,74.0697,2119.6,2119.1,3.81]
[1617686649695,74.0697,2119.6,2119.5,5.94]
[1617686649895,74.0697,2119.6,2119.2,0.21728479]
[1617686650096,2.90695,2119.3,2119.1,5.79]
[1617686650297,2.90695,2119.3,2119.0,4.97242351]
[1617686650596,2.90695,2119.3,2119.2,0.21728391]
[1617686650798,2.90695,2119.3,2119.1,5.97728356]
[1617686650997,2.90695,2119.3,2119.2,5.79]
[1617686651197,2.90695,2119.3,2119.2,6.00728327]
[1617686651603,2.90695,2119.3,2119.2,0.21728327]
[1617686651996,74.0697,2119.6,2119.2,5.91728327]
[1617686652397,74.0697,2119.6,2119.3,0.21728013]
[1617686652597,2.90695,2119.4,2119.3,0.21728013]
[1617686652997,2.90695,2119.4,2119.3,6.05728013]
[1617686653802,74.0697,2119.6,2119.3,6.05728013]
[1617686654401,74.0697,2119.6,2119.3,5.84]
[1617686654601,2.90695,2119.4,2119.3,5.84]
[1617686654900,2.90695,2119.4,2119.2,5.92]
[1617686655201,2.90695,2119.4,2119.3,5.88726417]
[1617686655400,2.90695,2119.4,2119.3,0.21726417]
[1617686655801,2.90695,2119.4,2119.3,6.15726417]
[1617686656102,2.90695,2119.4,2119.3,6.05716417]
[1617686657305,2.90695,2119.4,2119.3,5.94]
[1617686657704,2.90695,2119.4,2119.1,5.88]
[1617686658005,2.90695,2119.4,2119.3,5.8]
[1617686658404,2.90695,2119.4,2119.1,5.84]
[1617686658604,2.90695,2119.4,2119.3,5.68]
[1617686659204,2.90695,2119.4,2119.1,5.78]
[1617686659405,2.90695,2119.4,2119.3,5.87]
[1617686659607,2.90695,2119.4,2119.2,0.21499178]
[1617686659805,2.90695,2119.4,2119.1,5.7]
[1617686660005,2.90695,2119.4,2119.3,10.78212931]
[1617686660205,2.90695,2119.4,2119.3,4.98212931]
[1617686660405,2.90695,2119.4,2119.3,5.19740754]
[1617686660606,2.90695,2119.4,2119.3,11.08740754]
[1617686663709,2.90695,2119.4,2119.3,6.10527823]
[1617686664210,2.90695,2119.4,2119.3,11.08732156]
[1617686664808,2.90695,2119.4,2119.3,6.10527823]
[1617686665408,2.90695,2119.4,2119.3,11.08732258]
[1617686666811,2.90695,2119.4,2119.3,6.10527823]
[1617686667112,2.90695,2119.4,2119.3,11.08734333]
[1617686667411,2.90695,2119.4,2119.3,6.10527823]
[1617686671019,2.90695,2119.4,2119.3,11.08895543]
[1617686671319,2.90695,2119.4,2119.3,6.10527823]
[1617686671720,2.90695,2119.4,2119.3,13.32433309]
[1617686673320,2.90695,2119.4,2119.3,6.10527823]
[1617686676624,2.90695,2119.4,2119.3,13.32433218]
[1617686678027,2.90695,2119.4,2119.3,6.10527823]
[1617686686334,2.90695,2119.4,2119.3,5.89]
[1617686686535,2.90695,2119.4,2119.3,6.10557987]
[1617686690539,2.90695,2119.4,2119.3,13.3326793]
[1617686692545,2.90695,2119.4,2119.3,13.11709943]
[1617686694444,2.90695,2119.4,2119.3,5.89]
[1617686694849,2.90695,2119.4,2119.3,7.22696158]
[1617686695249,2.90695,2119.4,2119.3,12.97696158]
[1617686695648,2.90695,2119.4,2119.3,5.75]
[1617686696048,2.90695,2119.4,2119.2,7.2270355]
[1617686696350,78.64115,2119.4,2119.3,5.76]
[1617686696549,78.64115,2119.4,2119.3,12.98669956]
[1617686696749,78.64115,2119.4,2119.3,13.20224914]
[1617686696951,78.64115,2119.4,2119.3,3.12249958]
[1617686697248,78.64115,2119.4,2119.3,8.78249958]
[1617686701353,2.0,2120.7,2119.3,8.78249958]
[1617686701354,65.2894,2120.9,2119.3,11.11979958]
[1617686701850,2.0,2121.1,2119.3,11.11979958]
[1617686702050,2.0,2121.1,2119.4,0.2154459]
[1617686702252,2.0,2121.1,2120.5,5.00303863]
[1617686702561,2.0,2121.1,2120.6,5.00145109]
[1617686702750,2.0,2121.1,2120.6,10.87145109]
[1617686703250,2.90695,2120.7,2120.6,10.87145109]
[1617686703450,2.90695,2120.7,2120.6,5.87]
[1617686706556,3.83775,2120.7,2120.6,5.87]
[1617686706760,2.90695,2120.7,2120.6,5.87]
[1617686707863,2.90695,2120.7,2120.6,11.98081739]
[1617686708277,2.90695,2120.7,2120.5,6.11119978]
[1617686708762,2.90695,2120.7,2120.6,5.72]
[1617686708964,2.90695,2120.7,2120.6,6.10979367]
[1617686709165,2.90695,2120.7,2120.6,11.97979367]
[1617686710064,2.90695,2120.7,2120.6,5.87]
[1617686710364,2.90695,2120.7,2120.4,10.9133147]
[1617686710665,2.90695,2120.7,2120.5,5.85]
[1617686713068,2.90695,2120.7,2120.4,5.73]
[1617686713468,2.90695,2120.7,2120.6,5.87]
[1617686713768,3.84455,2120.7,2120.4,5.82]
[1617686713969,3.84455,2120.7,2120.6,5.87]
[1617686714370,2.90695,2120.7,2120.4,5.88]
[1617686714570,2.90695,2120.7,2120.6,5.75]
[1617686715071,2.90695,2120.7,2120.4,5.91]
[1617686715274,2.90695,2120.7,2120.6,5.72]
[1617686715475,2.90695,2120.7,2120.3,7.88717353]
[1617686715777,2.90695,2120.7,2120.4,5.71]
[1617686717278,2.90695,2120.7,2120.4,10.6847273]
[1617686717877,5.39175,2120.7,2120.4,10.6847273]
[1617686718678,5.39175,2120.7,2120.4,10.68304265]
[1617686720380,2.90695,2120.7,2120.4,10.68304265]
[1617686720891,2.90695,2120.7,2120.4,5.71]
[1617686725493,2.90695,2120.7,2120.6,2.90695]
[1617686725888,2.90695,2120.7,2120.6,11.20925]
[1617686726290,0.9353,2121.3,2120.6,16.1710461]
[1617686727592,0.9353,2121.3,2121.2,2.90695]
[1617686728091,0.9353,2121.3,2121.2,8.62695]
[1617686729294,0.9353,2121.3,2121.2,10.61275]
[1617686729494,3.84225,2121.3,2121.2,10.61275]
[1617686732198,3.84225,2121.3,2121.2,8.62695]
[1617686739813,3.84225,2121.3,2121.2,5.72]
[1617686740210,3.84225,2121.3,2120.3,5.79]
[1617686740409,3.84225,2121.3,2121.2,5.85]
[1617686740711,3.84225,2121.3,2120.1,6.96586935]
[1617686741113,3.84225,2121.3,2120.3,5.8]
[1617686741314,3.84225,2121.3,2120.2,5.76]
[1617686741513,3.84225,2121.3,2120.1,6.96586935]
[1617686741713,0.9353,2121.3,2120.8,2.90695]
[1617686742115,0.9353,2121.3,2120.9,5.86]
[1617686743716,2.90695,2121.0,2120.9,5.86]
[1617686747225,2.90695,2121.0,2119.3,19.75690555]
[1617686747226,2.90695,2121.0,2120.1,5.69]
[1617686747525,2.90695,2121.0,2120.9,5.77]
[1617686747727,2.90695,2121.0,2120.3,2.90695]
[1617686748126,65.0925,2120.9,2120.4,5.73]
[1617686749827,2.90695,2120.5,2120.4,5.73]
[1617686753530,2.90695,2120.5,2120.4,5.94427446]
[1617686755134,0.9353,2121.3,2120.4,5.94427446]
[1617686755333,0.9353,2121.3,2120.4,8.39057446]
[1617686755733,0.9353,2121.3,2121.1,2.90695]
[1617686755935,0.9353,2121.3,2121.1,4.98105]
[1617686756134,0.9353,2121.3,2121.2,5.7]
[1617686757738,3.84225,2121.3,2121.2,5.7]